fUSD/lending_fUSD_20260217
["ID","MTS","AMOUNT","RATE_DAILY","PERIOD"]
[405793795,1771314646783,-250.0,0.00017808,20]
[405793796,1771314646793,-250.0,0.00017808,20]
[405793797,1771314646802,-250.0,0.00017808,20]
[405793798,1771314646813,-250.0,0.00017808,20]
[405793799,1771314646823,-211.316222,0.00017808,20]
[405793800,1771314646832,-200.0,0.00017856,2]
[405793801,1771314646842,-162.0,0.000179,2]
[405793802,1771314646852,-1576.69293966,0.000179,2]
[405793803,1771314646862,-5519.99513015,0.000179,2]
[405793804,1771314646871,-1563.90389462,0.000179,2]
[405793805,1771314646881,-500.0,0.00017918,2]
[405793806,1771314646891,-500.0,0.00017918,2]
[405793807,1771314646901,-293.0,0.00017918,2]
[405793808,1771314646911,-258.29145491,0.00017961,2]
[405793809,1771314646922,-504.09468333,0.00017973,2]
[405793810,1771314646932,-573.45760824,0.00017973,2]
[405793811,1771314646942,-500.0,0.00017973,2]
[405793812,1771314646951,-616.27940406,0.00017973,2]
[405793813,1771314646960,-501.35605949,0.00017973,2]
[405793814,1771314646970,-508.22453373,0.00017973,2]
[405793815,1771314646980,-503.2366262,0.00017973,2]
[405793816,1771314646992,-500.0,0.00017973,2]
[405793817,1771314647002,-500.0,0.00017973,2]
[405793818,1771314647012,-502.80271569,0.00017973,2]
[405793819,1771314647022,-502.37992604,0.00017973,2]
[405793820,1771314647031,-509.85751715,0.00017973,2]
[405793821,1771314647042,-500.99019732,0.00017973,2]
[405793822,1771314647058,-501.26419244,0.00017973,2]
[405793823,1771314647072,-436.04334629,0.00017973,2]
[405793824,1771314647084,-168.45138887,0.00017973,2]
[405793825,1771314647095,-502.88998638,0.00017973,2]
[405793826,1771314647107,-504.49684223,0.00017973,2]
[405793827,1771314647117,-163.14629325,0.00017973,2]
[405793828,1771314647127,-500.0,0.00017973,2]
[405793829,1771314647137,-500.0,0.00017973,2]
[405793830,1771314647151,-500.0,0.00017973,2]
[405793831,1771314647161,-310.16973746,0.00017973,2]
[405793832,1771314647171,-500.0,0.00017973,2]
[405793833,1771314647180,-502.53760547,0.00017973,2]
[405793834,1771314647190,-504.66274009,0.00017973,2]
[405793835,1771314647200,-162.0,0.0001799,3]
[405793836,1771314647210,-165.14,0.0001799,3]
[405793837,1771314647220,-91039.2666247,0.00017991,2]
[405793838,1771314647230,-2836.2156125,0.00017991,2]
[405793839,1771314647240,-9124.9492887,0.00017991,2]
[405793840,1771314647251,-607.2399332,0.00017991,2]
[405793841,1771314647261,-15138.3822517,0.00017991,2]
[405793842,1771314647271,-166633.519392,0.00017991,2]
[405793843,1771314647282,-151.0,0.00017997,2]
[405793844,1771314647292,-300.0,0.00017999,2]
[405793845,1771314647301,-300.0,0.00017999,2]
[405793846,1771314647312,-300.0,0.00017999,2]
[405793847,1771314647321,-666.0,0.00017999,2]
[405793848,1771314647331,-23598.10797836,0.00017999,2]
[405793849,1771314647341,-2515315.93118179,0.00018,2]
[405793850,1771314648259,-765291.15357028,0.00018,2]
[405793851,1771314648270,-32248.06916205,0.00018,2]
[405793852,1771314648302,-429.22884342,0.00018,2]
[405793853,1771314648326,-254.35801595,0.00018,2]
[405793854,1771314648522,-616752.00000009,0.00018,2]
[405793856,1771314685062,300.74,8.183e-05,2]
[405793857,1771314767111,335.11400539,9.4e-05,3]
[405793858,1771314767152,446.18240863,9.4e-05,3]
[405793859,1771314767190,473.94950944,9.4e-05,3]
[405793860,1771314767230,418.41530782,9.4e-05,3]
[405793863,1771314941462,265.69607591,9.4e-05,3]
[405793864,1771314941520,317.75931008,9.4e-05,3]
[405793865,1771314941559,335.11372146,9.4e-05,3]
[405793866,1771314941628,352.46813285,9.4e-05,3]
[405793868,1771315125498,150.58103986,9.3e-05,3]
[405793869,1771315125544,151.01681975,9.3e-05,3]
[405793871,1771315304326,225.38,6.879e-05,2]
[405793887,1771315684426,-2374.6,8.3e-05,2]
[405793888,1771315684457,-743.66,8.509e-05,2]
[405793889,1771315684490,-250.0,8.534e-05,2]
[405793890,1771315684649,-2598.44339892,8.535e-05,2]
[405793891,1771315684694,-10000.01,8.535e-05,2]
[405793892,1771315684768,-10000.01,8.535e-05,2]
[405793893,1771315684878,-10000.01,8.535e-05,2]
[405793894,1771315687440,-10000.01,8.535e-05,2]
[405793895,1771315690878,-10000.01,8.535e-05,2]
[405793896,1771315690895,-10000.01,8.535e-05,2]
[405793897,1771315690912,-10000.01,8.535e-05,2]
[405793898,1771315749492,5530.0,0.000105,3]
[405793901,1771315767988,4113.0,0.00018,30]
[405793907,1771315780854,5530.0,0.000105,3]
[405793914,1771315831634,-221.0,8.532e-05,2]
[405793915,1771315831643,-151.0,8.532e-05,2]
[405793917,1771315831653,-151.0,8.532e-05,2]
[405793919,1771315831662,-242.71985383,8.533e-05,2]
[405793921,1771315831673,-57.28014617,8.533e-05,2]
[405793923,1771315831683,-300.0,8.533e-05,2]
[405793925,1771315831692,-150.0,8.533e-05,2]
[405793927,1771315831701,-72.4827527,8.533e-05,2]
[405793929,1771315831712,-227.5172473,8.533e-05,2]
[405793931,1771315831722,-300.0,8.533e-05,2]
[405793933,1771315831731,-1200.0,8.533e-05,2]
[405793935,1771315831741,-188.09323558,8.534e-05,2]
[405793937,1771315831758,-311.90676442,8.534e-05,2]
[405793939,1771315831768,-1045.0,8.534e-05,2]
[405793942,1771315831778,-224.26619886,8.534e-05,2]
[405793946,1771315831809,-52.38449627,8.534e-05,2]
[405793948,1771315831818,-500.0,8.534e-05,2]
[405793950,1771315831827,-500.0,8.534e-05,2]
[405793952,1771315831837,-130.26982946,8.534e-05,2]
[405793954,1771315831848,-203.32615119,8.534e-05,2]
[405793956,1771315831858,-56.06400703,8.535e-05,2]
[405793958,1771315831869,-708.50603005,8.535e-05,2]
[405793960,1771315831881,-972.66991975,8.535e-05,2]
[405793965,1771315831915,-729.51283028,8.535e-05,2]
[405794009,1771315837671,-516.34942448,8.533e-05,2]
[405794010,1771315837683,-516.34942448,8.533e-05,2]
[405794011,1771315837693,-516.34942448,8.533e-05,2]
[405794012,1771315837703,-516.34942448,8.533e-05,2]
[405794013,1771315837713,-65.44916046,8.533e-05,2]
[405794014,1771315837727,-450.90026402,8.533e-05,2]
[405794015,1771315837737,-516.34942448,8.533e-05,2]
[405794016,1771315837747,-516.34942448,8.533e-05,2]
[405794018,1771315837756,-516.34942448,8.533e-05,2]
[405794020,1771315837766,-516.34942448,8.533e-05,2]
[405794022,1771315837775,-516.34942448,8.533e-05,2]
[405794024,1771315837784,-516.34942448,8.533e-05,2]
[405794026,1771315837794,-516.34942448,8.533e-05,2]
[405794028,1771315837803,-216.88260876,8.533e-05,2]
[405794030,1771315837815,-299.46681572,8.533e-05,2]
[405794032,1771315837824,-516.34942448,8.533e-05,2]
[405794034,1771315837833,-516.34942448,8.533e-05,2]
[405794035,1771315837843,-516.34942448,8.533e-05,2]
[405794036,1771315837852,-516.34942448,8.533e-05,2]
[405794037,1771315837863,-516.34942448,8.533e-05,2]
[405794038,1771315837873,-516.34942448,8.533e-05,2]
[405794039,1771315837882,-516.34942448,8.533e-05,2]
[405794040,1771315837892,-516.34942448,8.533e-05,2]
[405794041,1771315837901,-516.34942448,8.533e-05,2]
[405794042,1771315837911,-516.34942448,8.533e-05,2]
[405794043,1771315837921,-516.34942448,8.533e-05,2]
[405794044,1771315837931,-516.34942448,8.533e-05,2]
[405794046,1771315837940,-516.34942448,8.533e-05,2]
[405794047,1771315837950,-516.34942448,8.533e-05,2]
[405794049,1771315837961,-516.34942448,8.533e-05,2]
[405794050,1771315837970,-516.34942448,8.533e-05,2]
[405794051,1771315837980,-516.34942448,8.533e-05,2]
[405794052,1771315837989,-516.34942448,8.533e-05,2]
[405794053,1771315837999,-3424934.73381397,8.535e-05,2]
[405794054,1771315838009,-479.045748,8.559e-05,2]
[405794055,1771315838018,-5519.99513017,8.559e-05,2]
[405794056,1771315838028,-500.0,8.56e-05,2]
[405794057,1771315838037,-250.0,8.594e-05,2]
[405794058,1771315838047,-13457.98,8.635e-05,2]
[405794059,1771315838057,-1000.0,8.752e-05,2]
[405794060,1771315838066,-500.0,8.808e-05,2]
[405794061,1771315838076,-4783.91378559,8.855e-05,2]
[405794062,1771315838086,-3434.5,8.902e-05,2]
[405794063,1771315838095,-2516.71,8.95e-05,2]
[405794064,1771315838104,-150.99,9.01e-05,2]
[405794065,1771315838114,-299.99,9.01e-05,2]
[405794066,1771315838123,-999.99,9.01e-05,2]
[405794067,1771315838133,-9999.99,9.01e-05,2]
[405794068,1771315838142,-500.0,9.082e-05,2]
[405794069,1771315838157,-150.99,9.143e-05,2]
[405794070,1771315838166,-9999.99,9.143e-05,2]
[405794071,1771315838176,-330.66764766,9.3e-05,2]
[405794072,1771315838186,-411.9680891,9.3e-05,2]
[405794073,1771315838195,-466.1683834,9.3e-05,2]
[405794074,1771315838205,-439.06823625,9.3e-05,2]
[405794075,1771315838215,-500.0,9.356e-05,2]
[405794076,1771315838224,-250.0,9.36e-05,2]
[405794077,1771315838234,-420.0,9.386e-05,2]
[405794078,1771315838244,-420.0,9.386e-05,2]
[405794079,1771315838253,-255.0,9.386e-05,2]
[405794080,1771315838263,-420.0,9.386e-05,2]
[405794081,1771315838272,-1680.0,9.386e-05,2]
[405794082,1771315838282,-250.0,9.389e-05,2]
[405794083,1771315838293,-361407.06350756,9.403e-05,2]
[405794084,1771315838303,-125059.93813732,9.482e-05,2]
[405794085,1771315838313,-233.13055887,9.482e-05,2]
[405794086,1771315838322,-299.032,9.483e-05,2]
[405794087,1771315838332,-3514.826,9.483e-05,2]
[405794088,1771315838342,-7609.4532204,9.485e-05,2]
[405794089,1771315838351,-1242242.5097,9.485e-05,2]
[405794090,1771315838361,-237.28842339,9.521e-05,2]
[405794091,1771315838371,-500.0,9.521e-05,2]
[405794092,1771315838380,-500.0,9.521e-05,2]
[405794093,1771315838390,-500.0,9.521e-05,2]
[405794094,1771315838400,-500.0,9.521e-05,2]
[405794095,1771315838410,-500.0,9.521e-05,2]
[405794096,1771315838419,-150.0,9.521e-05,2]
[405794097,1771315838429,-500.0,9.521e-05,2]
[405794098,1771315838767,-154.49885719,9.521e-05,2]
[405794099,1771315838849,-500.0,9.521e-05,2]
[405794100,1771315838859,-500.0,9.521e-05,2]
[405794101,1771315838868,-150.31509327,9.521e-05,2]
[405794102,1771315838878,-500.0,9.521e-05,2]
[405794103,1771315838888,-150.0,9.521e-05,2]
[405794104,1771315838897,-546.0,9.521e-05,2]
[405794105,1771315838907,-500.0,9.521e-05,2]
[405794106,1771315838916,-150.0,9.521e-05,2]
[405794107,1771315838926,-150.0,9.521e-05,2]
[405794108,1771315838936,-500.0,9.521e-05,2]
[405794109,1771315838945,-458.0,9.521e-05,2]
[405794110,1771315838955,-500.0,9.521e-05,2]
[405794111,1771315838965,-150.0,9.521e-05,2]
[405794112,1771315838975,-500.0,9.521e-05,2]
[405794113,1771315838984,-799.0,9.521e-05,2]
[405794114,1771315838994,-3888.0,9.521e-05,2]
[405794115,1771315839004,-150.0,9.521e-05,2]
[405794116,1771315839013,-500.0,9.521e-05,2]
[405794117,1771315839023,-150.0,9.521e-05,2]
[405794118,1771315839032,-500.0,9.521e-05,2]
[405794119,1771315839042,-500.0,9.521e-05,2]
[405794120,1771315839052,-150.0,9.521e-05,2]
[405794121,1771315839062,-150.0,9.521e-05,2]
[405794122,1771315839072,-150.0,9.521e-05,2]
[405794123,1771315839082,-150.0,9.521e-05,2]
[405794124,1771315839091,-500.0,9.521e-05,2]
[405794125,1771315839100,-500.0,9.521e-05,2]
[405794126,1771315839110,-500.0,9.521e-05,2]
[405794127,1771315839119,-150.0,9.521e-05,2]
[405794128,1771315839129,-150.0,9.521e-05,2]
[405794129,1771315839139,-150.0,9.521e-05,2]
[405794130,1771315839148,-1484.58259257,9.541e-05,2]
[405794131,1771315839157,-2228.04,9.566e-05,2]
[405794132,1771315839167,-4565.81,9.57e-05,2]
[405794133,1771315839180,-500.0,9.576e-05,2]
[405794134,1771315839189,-500.0,9.576e-05,2]
[405794135,1771315839199,-502.16866536,9.576e-05,2]
[405794136,1771315839209,-500.0,9.576e-05,2]
[405794137,1771315839218,-500.0,9.576e-05,2]
[405794138,1771315839227,-150.0,9.576e-05,2]
[405794139,1771315839237,-500.0,9.576e-05,2]
[405794140,1771315839247,-500.0,9.576e-05,2]
[405794141,1771315839256,-500.0,9.576e-05,2]
[405794142,1771315839266,-500.0,9.576e-05,2]
[405794143,1771315839276,-150.0,9.576e-05,2]
[405794144,1771315839285,-546.0,9.576e-05,2]
[405794145,1771315839295,-500.0,9.576e-05,2]
[405794146,1771315839305,-150.0,9.576e-05,2]
[405794147,1771315839314,-500.0,9.576e-05,2]
[405794148,1771315839323,-458.0,9.576e-05,2]
[405794149,1771315839333,-500.0,9.576e-05,2]
[405794150,1771315839342,-500.0,9.576e-05,2]
[405794151,1771315839352,-799.0,9.576e-05,2]
[405794152,1771315839361,-3888.0,9.576e-05,2]
[405794153,1771315839371,-150.07216309,9.576e-05,2]
[405794154,1771315839381,-500.0,9.576e-05,2]
[405794155,1771315839390,-150.0,9.576e-05,2]
[405794156,1771315839399,-500.0,9.576e-05,2]
[405794157,1771315839409,-500.0,9.576e-05,2]
[405794158,1771315839418,-244.28993987,9.576e-05,2]
[405794159,1771315839428,-150.0,9.576e-05,2]
[405794160,1771315839437,-150.0,9.576e-05,2]
[405794161,1771315839447,-150.0,9.576e-05,2]
[405794162,1771315839456,-500.0,9.576e-05,2]
[405794163,1771315839471,-500.0,9.576e-05,2]
[405794164,1771315839482,-649.65624143,9.576e-05,2]
[405794165,1771315839494,-205.12968692,9.576e-05,2]
[405794166,1771315839505,-150.0,9.576e-05,2]
[405794167,1771315839514,-500.0,9.63e-05,2]
[405794168,1771315839523,-220.15883999,9.631e-05,2]
[405794169,1771315839533,-500.0,9.631e-05,2]
[405794170,1771315839543,-500.0,9.631e-05,2]
[405794171,1771315839552,-500.0,9.631e-05,2]
[405794172,1771315839562,-150.0,9.631e-05,2]
[405794173,1771315839576,-500.0,9.631e-05,2]
[405794174,1771315839586,-500.0,9.631e-05,2]
[405794175,1771315839595,-500.0,9.631e-05,2]
[405794176,1771315839604,-500.0,9.631e-05,2]
[405794178,1771315839613,-150.0,9.631e-05,2]
[405794180,1771315839623,-546.0,9.631e-05,2]
[405794181,1771315839632,-500.0,9.631e-05,2]
[405794182,1771315839641,-171.12228144,9.631e-05,2]
[405794183,1771315839650,-500.0,9.631e-05,2]
[405794184,1771315839660,-458.0,9.631e-05,2]
[405794185,1771315839670,-500.0,9.631e-05,2]
[405794186,1771315839679,-500.0,9.631e-05,2]
[405794187,1771315839688,-799.0,9.631e-05,2]
[405794188,1771315839698,-3888.0,9.631e-05,2]
[405794189,1771315839708,-500.0,9.631e-05,2]
[405794190,1771315839718,-242.84628954,9.631e-05,2]
[405794191,1771315839727,-152.12850518,9.631e-05,2]
[405794192,1771315839737,-500.0,9.631e-05,2]
[405794193,1771315839746,-150.0,9.631e-05,2]
[405794194,1771315839756,-200.36674187,9.631e-05,2]
[405794195,1771315839766,-200.18645604,9.631e-05,2]
[405794196,1771315839775,-500.0,9.631e-05,2]
[405794197,1771315839784,-500.0,9.631e-05,2]
[405794198,1771315839793,-150.0,9.631e-05,2]
[405794199,1771315839803,-32850.4601,9.656e-05,2]
[405794200,1771315839813,-1000.0,9.656e-05,2]
[405794201,1771315839822,-500.0,9.685e-05,2]
[405794202,1771315839832,-500.0,9.685e-05,2]
[405794203,1771315839841,-500.0,9.685e-05,2]
[405794204,1771315839851,-237.36614029,9.685e-05,2]
[405794205,1771315839860,-500.0,9.685e-05,2]
[405794206,1771315839870,-500.0,9.685e-05,2]
[405794207,1771315839880,-500.0,9.685e-05,2]
[405794208,1771315839889,-500.0,9.685e-05,2]
[405794209,1771315839899,-166.5683879,9.685e-05,2]
[405794210,1771315839908,-546.0,9.685e-05,2]
[405794211,1771315839918,-500.0,9.685e-05,2]
[405794212,1771315839928,-500.0,9.685e-05,2]
[405794213,1771315839937,-458.0,9.685e-05,2]
[405794214,1771315839947,-500.0,9.685e-05,2]
[405794215,1771315839957,-500.0,9.685e-05,2]
[405794216,1771315839967,-799.0,9.685e-05,2]
[405794217,1771315839977,-3888.0,9.685e-05,2]
[405794218,1771315839986,-500.0,9.685e-05,2]
[405794220,1771315839996,-500.0,9.685e-05,2]
[405794222,1771315840005,-200.89245722,9.685e-05,2]
[405794224,1771315840015,-500.0,9.685e-05,2]
[405794226,1771315840024,-500.0,9.685e-05,2]
[405794228,1771315840034,-228.36591542,9.685e-05,2]
[405794230,1771315840043,-10000.0,9.696e-05,2]
[405794232,1771315840052,-4587.476,9.696e-05,2]
[405794234,1771315840062,-500.0,9.74e-05,2]
[405794236,1771315840072,-329.95129651,9.74e-05,2]
[405794238,1771315840081,-500.0,9.74e-05,2]
[405794240,1771315840091,-500.0,9.74e-05,2]
[405794242,1771315840100,-500.0,9.74e-05,2]
[405794243,1771315840110,-500.0,9.74e-05,2]
[405794244,1771315840119,-500.0,9.74e-05,2]
[405794245,1771315840129,-546.0,9.74e-05,2]
[405794246,1771315840138,-500.0,9.74e-05,2]
[405794247,1771315840147,-500.0,9.74e-05,2]
[405794248,1771315840157,-458.0,9.74e-05,2]
[405794249,1771315840166,-500.0,9.74e-05,2]
[405794250,1771315840177,-475.49905426,9.74e-05,2]
[405794251,1771315840187,-799.0,9.74e-05,2]
[405794252,1771315840196,-3888.0,9.74e-05,2]
[405794253,1771315840206,-500.0,9.74e-05,2]
[405794254,1771315840215,-500.0,9.74e-05,2]
[405794255,1771315840224,-500.0,9.74e-05,2]
[405794256,1771315840233,-500.0,9.74e-05,2]
[405794257,1771315840242,-500.0,9.795e-05,2]
[405794258,1771315840252,-500.0,9.795e-05,2]
[405794259,1771315840262,-500.0,9.795e-05,2]
[405794260,1771315840272,-500.0,9.795e-05,2]
[405794261,1771315840282,-500.0,9.795e-05,2]
[405794262,1771315840291,-500.0,9.795e-05,2]
[405794263,1771315840300,-546.0,9.795e-05,2]
[405794264,1771315840310,-500.0,9.795e-05,2]
[405794265,1771315840320,-500.0,9.795e-05,2]
[405794266,1771315840330,-458.0,9.795e-05,2]
[405794267,1771315840339,-500.0,9.795e-05,2]
[405794268,1771315840348,-799.0,9.795e-05,2]
[405794269,1771315840357,-3888.0,9.795e-05,2]
[405794270,1771315840367,-500.0,9.795e-05,2]
[405794271,1771315840376,-500.0,9.795e-05,2]
[405794272,1771315840386,-500.0,9.795e-05,2]
[405794273,1771315840396,-500.0,9.795e-05,2]
[405794274,1771315840405,-391.49,9.815e-05,2]
[405794275,1771315840414,-1000.0,9.846e-05,2]
[405794276,1771315840423,-500.0,9.85e-05,2]
[405794277,1771315840433,-500.0,9.85e-05,2]
[405794278,1771315840443,-500.0,9.85e-05,2]
[405794279,1771315840452,-500.0,9.85e-05,2]
[405794280,1771315840463,-500.0,9.85e-05,2]
[405794281,1771315840473,-500.0,9.85e-05,2]
[405794282,1771315840482,-546.0,9.85e-05,2]
[405794283,1771315840495,-350.0,9.85e-05,2]
[405794284,1771315840504,-458.0,9.85e-05,2]
[405794285,1771315840514,-500.0,9.85e-05,2]
[405794286,1771315840524,-500.0,9.85e-05,2]
[405794287,1771315840534,-799.0,9.85e-05,2]
[405794288,1771315840544,-3888.0,9.85e-05,2]
[405794289,1771315840554,-500.0,9.85e-05,2]
[405794290,1771315840566,-630.25617345,9.85e-05,2]
[405794291,1771315840576,-500.0,9.85e-05,2]
[405794292,1771315840586,-382.17209928,9.85e-05,2]
[405794293,1771315840595,-500.0,9.904e-05,2]
[405794294,1771315840605,-500.0,9.905e-05,2]
[405794295,1771315840615,-155.81655615,9.905e-05,2]
[405794296,1771315840625,-153.57378643,9.905e-05,2]
[405794297,1771315840636,-500.0,9.905e-05,2]
[405794298,1771315840646,-500.0,9.905e-05,2]
[405794299,1771315840656,-500.0,9.905e-05,2]
[405794300,1771315840665,-546.0,9.905e-05,2]
[405794301,1771315840675,-458.0,9.905e-05,2]
[405794302,1771315840685,-500.0,9.905e-05,2]
[405794303,1771315840695,-500.0,9.905e-05,2]
[405794304,1771315840704,-799.0,9.905e-05,2]
[405794305,1771315840713,-3888.0,9.905e-05,2]
[405794306,1771315840722,-500.0,9.905e-05,2]
[405794307,1771315840731,-500.0,9.905e-05,2]
[405794308,1771315840739,-500.0,9.959e-05,2]
[405794309,1771315840749,-500.0,9.959e-05,2]
[405794310,1771315840758,-500.0,9.959e-05,2]
[405794311,1771315840769,-500.0,9.959e-05,2]
[405794312,1771315840779,-546.0,9.959e-05,2]
[405794313,1771315840789,-458.0,9.959e-05,2]
[405794314,1771315840799,-500.0,9.959e-05,2]
[405794315,1771315840810,-500.0,9.959e-05,2]
[405794316,1771315840819,-799.0,9.959e-05,2]
[405794317,1771315840829,-3888.0,9.959e-05,2]
[405794318,1771315840838,-500.0,9.959e-05,2]
[405794319,1771315840848,-616.33885806,9.959e-05,2]
[405794320,1771315840858,-174.44086209,0.0001,2]
[405794321,1771315840868,-174.44086209,0.0001,2]
[405794322,1771315840878,-200.0,0.0001,2]
[405794323,1771315840887,-500.0,0.0001,2]
[405794324,1771315840898,-151.0,0.0001,2]
[405794325,1771315840908,-151.0,0.0001,2]
[405794326,1771315840919,-151.0,0.0001,2]
[405794327,1771315840928,-151.0,0.0001,2]
[405794328,1771315840937,-151.0,0.0001,2]
[405794329,1771315840946,-151.0,0.0001,2]
[405794330,1771315840955,-151.0,0.0001,2]
[405794331,1771315840965,-151.0,0.0001,2]
[405794332,1771315840974,-151.0,0.0001,2]
[405794333,1771315840984,-151.0,0.0001,2]
[405794334,1771315840993,-151.0,0.0001,2]
[405794335,1771315841003,-500.0,0.0001,2]
[405794336,1771315841012,-500.0,0.0001,2]
[405794337,1771315841021,-500.0,0.0001,2]
[405794338,1771315841029,-500.0,0.0001,2]
[405794339,1771315841038,-500.0,0.0001,2]
[405794340,1771315841048,-500.0,0.0001,2]
[405794341,1771315841058,-500.0,0.0001,2]
[405794342,1771315841067,-500.0,0.0001,2]
[405794343,1771315841076,-500.0,0.0001,2]
[405794344,1771315841086,-500.0,0.0001,2]
[405794345,1771315841096,-500.0,0.0001,2]
[405794346,1771315841105,-500.0,0.0001,2]
[405794347,1771315841114,-500.0,0.0001,2]
[405794348,1771315841123,-500.0,0.0001,2]
[405794349,1771315841132,-500.0,0.0001,2]
[405794350,1771315841141,-500.0,0.0001,2]
[405794351,1771315841151,-500.0,0.0001,2]
[405794352,1771315841161,-500.0,0.0001,2]
[405794353,1771315841170,-500.0,0.0001,2]
[405794354,1771315841179,-500.0,0.0001,2]
[405794355,1771315841188,-500.0,0.0001,2]
[405794356,1771315841197,-500.0,0.0001,2]
[405794357,1771315841206,-151.0,0.0001,2]
[405794358,1771315841215,-151.0,0.0001,2]
[405794359,1771315841225,-200.0,0.0001,2]
[405794360,1771315841234,-151.0,0.0001,2]
[405794361,1771315841243,-151.0,0.0001,2]
[405794362,1771315841252,-151.0,0.0001,2]
[405794363,1771315841261,-151.0,0.0001,2]
[405794364,1771315841271,-151.0,0.0001,2]
[405794365,1771315841280,-151.0,0.0001,2]
[405794366,1771315841290,-151.0,0.0001,2]
[405794367,1771315841300,-151.0,0.0001,2]
[405794368,1771315841311,-151.0,0.0001,2]
[405794369,1771315841321,-151.0,0.0001,2]
[405794370,1771315841330,-151.0,0.0001,2]
[405794371,1771315841339,-151.0,0.0001,2]
[405794372,1771315841348,-151.0,0.0001,2]
[405794373,1771315841358,-151.0,0.0001,2]
[405794374,1771315841367,-151.0,0.0001,2]
[405794375,1771315841377,-151.0,0.0001,2]
[405794376,1771315841386,-151.0,0.0001,2]
[405794377,1771315841396,-151.0,0.0001,2]
[405794378,1771315841405,-274.0,0.0001,2]
[405794379,1771315841419,-274.0,0.0001,2]
[405794380,1771315841428,-276.85061866,0.0001,2]
[405794381,1771315841438,-885.17558433,0.0001,2]
[405794382,1771315841447,-885.17558433,0.0001,2]
[405794383,1771315841457,-500.0,0.00010014,2]
[405794384,1771315841466,-500.0,0.00010014,2]
[405794385,1771315841475,-500.0,0.00010014,2]
[405794386,1771315841484,-546.0,0.00010014,2]
[405794387,1771315841495,-500.0,0.00010014,2]
[405794388,1771315841504,-458.0,0.00010014,2]
[405794389,1771315841513,-500.0,0.00010014,2]
[405794390,1771315841523,-500.0,0.00010014,2]
[405794391,1771315841533,-799.0,0.00010014,2]
[405794392,1771315841542,-3888.0,0.00010014,2]
[405794393,1771315841551,-500.0,0.00010014,2]
[405794394,1771315841564,-500.0,0.00010069,2]
[405794395,1771315841573,-561.9355564,0.00010069,2]
[405794396,1771315841583,-500.0,0.00010069,2]
[405794397,1771315841593,-546.0,0.00010069,2]
[405794398,1771315841602,-500.0,0.00010069,2]
[405794399,1771315841612,-458.0,0.00010069,2]
[405794400,1771315841621,-500.0,0.00010069,2]
[405794401,1771315841630,-500.0,0.00010069,2]
[405794402,1771315841640,-799.0,0.00010069,2]
[405794403,1771315841649,-3888.0,0.00010069,2]
[405794404,1771315841660,-500.0,0.00010069,2]
[405794405,1771315841669,-500.0,0.00010124,2]
[405794406,1771315841679,-500.0,0.00010124,2]
[405794407,1771315841688,-546.0,0.00010124,2]
[405794408,1771315841698,-500.0,0.00010124,2]
[405794409,1771315841708,-458.0,0.00010124,2]
[405794410,1771315841717,-500.0,0.00010124,2]
[405794411,1771315841727,-500.0,0.00010124,2]
[405794412,1771315841738,-799.0,0.00010124,2]
[405794413,1771315841747,-3888.0,0.00010124,2]
[405794414,1771315841757,-163.51122534,0.00010124,2]
[405794415,1771315841767,-500.0,0.00010178,2]
[405794416,1771315841776,-224.65460803,0.00010179,2]
[405794417,1771315841787,-500.0,0.00010179,2]
[405794418,1771315841797,-546.0,0.00010179,2]
[405794419,1771315841809,-611.76249723,0.00010179,2]
[405794420,1771315841819,-500.0,0.00010179,2]
[405794421,1771315841828,-458.0,0.00010179,2]
[405794422,1771315841838,-481.0942881,0.00010179,2]
[405794423,1771315841847,-799.0,0.00010179,2]